fUSD/lending_fUSD_20240714
["ID","MTS","AMOUNT","RATE_DAILY","PERIOD"]
[332161805,1720996240833,-500.0,0.00013859,2]
[332161807,1720996240843,-500.0,0.00013859,2]
[332161809,1720996240854,-500.0,0.00013859,2]
[332161811,1720996240863,-500.0,0.00013859,2]
[332161813,1720996240872,-500.0,0.00013859,2]
[332161815,1720996240881,-500.0,0.00013859,2]
[332161817,1720996240890,-500.0,0.00013859,2]
[332161818,1720996240900,-500.0,0.00013859,2]
[332161820,1720996240910,-500.0,0.00013859,2]
[332161822,1720996240919,-500.0,0.00013859,2]
[332161824,1720996240930,-500.0,0.00013859,2]
[332161826,1720996240940,-500.0,0.00013859,2]
[332161828,1720996240949,-500.0,0.00013859,2]
[332161830,1720996240959,-500.0,0.00013859,2]
[332161832,1720996240968,-500.0,0.00013859,2]
[332161834,1720996240978,-500.0,0.00013859,2]
[332161836,1720996240987,-500.0,0.00013859,2]
[332161838,1720996240996,-500.0,0.00013859,2]
[332161840,1720996241006,-500.0,0.00013859,2]
[332161842,1720996241015,-500.0,0.00013859,2]
[332161844,1720996241024,-500.0,0.00013859,2]
[332161846,1720996241033,-500.0,0.00013859,2]
[332161848,1720996241043,-500.0,0.00013859,2]
[332161850,1720996241052,-500.0,0.00013859,2]
[332161852,1720996241062,-500.0,0.00013859,2]
[332161854,1720996241072,-500.0,0.00013859,2]
[332161856,1720996241082,-500.0,0.00013859,2]
[332161858,1720996241091,-500.0,0.0001386,2]
[332161860,1720996241100,-350.08367704,0.0001386,2]
[332161862,1720996241109,-500.0,0.0001386,2]
[332161864,1720996241118,-500.0,0.0001386,2]
[332161866,1720996241127,-500.0,0.0001386,2]
[332161868,1720996241136,-362.2235959,0.0001386,2]
[332161870,1720996241146,-500.0,0.0001386,2]
[332161872,1720996241155,-500.0,0.0001386,2]
[332161874,1720996241164,-500.0,0.0001386,2]
[332161876,1720996241173,-500.0,0.0001386,2]
[332161878,1720996241183,-500.0,0.0001386,2]
[332161880,1720996241192,-1150.01702,0.0001386,2]
[332161882,1720996241201,-1150.01702,0.0001386,2]
[332161884,1720996241210,-500.0,0.00013863,2]
[332161886,1720996241220,-1045.1,0.00013863,2]
[332161888,1720996241229,-500.0,0.00013863,2]
[332161890,1720996241238,-150.0,0.00013863,2]
[332161892,1720996241248,-500.0,0.00013863,2]
[332161894,1720996241257,-500.0,0.00013863,2]
[332161896,1720996241266,-500.0,0.00013863,2]
[332161898,1720996241275,-500.0,0.00013863,2]
[332161900,1720996241284,-196.02531339,0.00013863,2]
[332161902,1720996241293,-500.0,0.00013863,2]
[332161904,1720996241302,-500.0,0.00013863,2]
[332161906,1720996241312,-500.0,0.00013863,2]
[332161908,1720996241323,-500.0,0.00013863,2]
[332161910,1720996241332,-500.0,0.00013863,2]
[332161912,1720996241343,-500.0,0.00013863,2]
[332161914,1720996241353,-500.0,0.00013863,2]
[332161916,1720996241362,-500.0,0.00013863,2]
[332161918,1720996241371,-500.0,0.00013863,2]
[332161920,1720996241380,-500.0,0.00013863,2]
[332161922,1720996241390,-727.87,0.00013863,2]
[332161925,1720996241400,-500.0,0.00013863,2]
[332161927,1720996241409,-508.17,0.00013863,2]
[332161929,1720996241418,-500.0,0.00013863,2]
[332161931,1720996241428,-500.0,0.00013863,2]
[332161933,1720996241437,-500.0,0.00013863,2]
[332161935,1720996241447,-694.14,0.00013863,2]
[332161937,1720996241456,-500.0,0.00013863,2]
[332161939,1720996241465,-500.0,0.00013863,2]
[332161941,1720996241474,-500.0,0.00013863,2]
[332161942,1720996241483,-500.0,0.00013863,2]
[332161944,1720996241493,-500.0,0.00013863,2]
[332161947,1720996241503,-500.0,0.00013863,2]
[332161949,1720996241512,-500.0,0.00013863,2]
[332161965,1720996241522,-500.0,0.00013863,2]
[332161969,1720996241689,-580.99,0.00013863,2]
[332161971,1720996241699,-500.0,0.00013863,2]
[332161973,1720996241710,-500.0,0.00013863,2]
[332161975,1720996241719,-500.0,0.00013863,2]
[332161977,1720996241729,-500.0,0.00013863,2]
[332161979,1720996241740,-500.0,0.00013863,2]
[332161982,1720996241752,-748.28,0.00013863,2]
[332161984,1720996241763,-500.0,0.00013863,2]
[332161986,1720996241773,-500.0,0.00013863,2]
[332161988,1720996241783,-500.0,0.00013863,2]
[332161990,1720996241793,-500.0,0.00013863,2]
[332161992,1720996241803,-772.34,0.00013863,2]
[332161994,1720996241813,-500.0,0.00013863,2]
[332161996,1720996241825,-500.0,0.00013863,2]
[332161998,1720996241835,-500.0,0.00013863,2]
[332162000,1720996241846,-500.0,0.00013863,2]
[332162002,1720996241860,-568.75038874,0.00013863,2]
[332162004,1720996241870,-500.0,0.00013863,2]
[332162006,1720996241879,-500.0,0.00013863,2]
[332162008,1720996241889,-919.77,0.00013863,2]
[332162010,1720996241899,-500.0,0.00013863,2]
[332162012,1720996241909,-500.0,0.00013863,2]
[332162014,1720996241919,-500.0,0.00013863,2]
[332162016,1720996241930,-500.0,0.00013863,2]
[332162018,1720996241940,-950.04,0.00013863,2]
[332162020,1720996241950,-500.0,0.00013863,2]
[332162022,1720996241960,-593.28,0.00013863,2]
[332162024,1720996241970,-179.4218243,0.00013863,2]
[332162026,1720996241982,-500.0,0.00013863,2]
[332162028,1720996241991,-7142.84981025,0.0001388,2]
[332162030,1720996242001,-197.612008,0.00013888,2]
[332162032,1720996242011,-500.0,0.00013888,2]
[332162034,1720996242020,-3000.0,0.00013888,2]
[332162036,1720996242030,-155.11959105,0.00013889,2]
[332162038,1720996242039,-402.1,0.0001389,2]
[332162040,1720996242049,-598.72748639,0.00013897,2]
[332162042,1720996242059,-155.0,0.00013899,2]
[332162044,1720996242072,-624.51640094,0.00013899,2]
[332162046,1720996242081,-156.04152706,0.00013899,2]
[332162048,1720996242090,-174.02504748,0.00013899,2]
[332162050,1720996242100,-789.61914132,0.00013899,2]
[332162052,1720996242110,-500.0,0.000139,2]
[332162054,1720996242119,-1000.0,0.000139,2]
[332162056,1720996242128,-1547.98591501,0.000139,2]
[332162058,1720996242138,-161.3672115,0.000139,2]
[332162060,1720996242147,-159.84558468,0.000139,2]
[332162061,1720996242157,-2837.22536271,0.000139,3]
[332162064,1720996242172,-85482.43305229,0.000139,3]
[332162066,1720996242182,-1328.42894827,0.000139,2]
[332162068,1720996242192,-596.88919447,0.000139,2]
[332162070,1720996242201,-1216.65951376,0.000139,2]
[332162072,1720996242211,-6501.65946256,0.000139,2]
[332162074,1720996242220,-12617.0940593,0.00013903,3]
[332162076,1720996242230,-500.0,0.00013903,2]
[332162077,1720996242239,-500.0,0.00013903,2]
[332162079,1720996242248,-500.0,0.00013903,2]
[332162081,1720996242258,-500.0,0.00013903,2]
[332162083,1720996242268,-500.0,0.00013903,2]
[332162085,1720996242278,-500.0,0.00013903,2]
[332162087,1720996242288,-500.0,0.00013903,2]
[332162089,1720996242297,-500.0,0.00013903,2]
[332162091,1720996242307,-470.69296453,0.00013903,2]
[332162093,1720996242317,-2663.13,0.00013903,2]
[332162095,1720996242328,-500.0,0.00013903,2]
[332162097,1720996242337,-500.0,0.00013903,2]
[332162099,1720996242346,-500.0,0.00013903,2]
[332162101,1720996242356,-500.0,0.00013903,2]
[332162103,1720996242365,-500.0,0.00013903,2]
[332162105,1720996242374,-500.0,0.00013903,2]
[332162107,1720996242384,-500.0,0.00013903,2]
[332162109,1720996242393,-500.0,0.00013903,2]
[332162111,1720996242402,-531.12485643,0.00013903,2]
[332162113,1720996242412,-500.0,0.00013903,2]
[332162115,1720996242422,-500.0,0.00013903,2]
[332162117,1720996242432,-500.0,0.00013903,2]
[332162119,1720996242441,-500.0,0.00013903,2]
[332162121,1720996242451,-561.32394477,0.00013903,2]
[332162124,1720996242461,-500.0,0.00013903,2]
[332162125,1720996242470,-841.24,0.00013903,2]
[332162127,1720996242480,-500.0,0.00013903,2]
[332162129,1720996242489,-1197.35666538,0.00013904,3]
[332162132,1720996242501,-11419.73739392,0.00013904,3]
[332162134,1720996242511,-12617.0940593,0.00013905,3]
[332162136,1720996242520,-500.0,0.00013913,2]
[332162138,1720996242530,-500.0,0.00013913,2]
[332162140,1720996242540,-500.0,0.00013913,2]
[332162142,1720996242549,-500.0,0.00013913,2]
[332162144,1720996242558,-586.34,0.00013913,2]
[332162146,1720996242568,-500.0,0.00013913,2]
[332162148,1720996242577,-500.0,0.00013913,2]
[332162150,1720996242587,-500.0,0.00013913,2]
[332162152,1720996242596,-554.84,0.00013913,2]
[332162154,1720996242605,-500.0,0.00013913,2]
[332162156,1720996242614,-562.19,0.00013913,2]
[332162158,1720996242623,-456.91090566,0.00013913,2]
[332162160,1720996242633,-500.0,0.00013913,2]
[332162161,1720996242642,-500.0,0.00013913,2]
[332162164,1720996242652,-500.0,0.00013913,2]
[332162166,1720996242661,-553.02,0.00013913,2]
[332162168,1720996242671,-500.0,0.00013913,2]
[332162171,1720996242682,-500.0,0.00013913,2]
[332162173,1720996242691,-500.0,0.00013913,2]
[332162175,1720996242701,-556.55,0.00013913,2]
[332162177,1720996242711,-500.0,0.00013913,2]
[332162180,1720996242722,-500.0,0.00013913,2]
[332162182,1720996242731,-500.0,0.00013913,2]
[332162183,1720996242740,-500.0,0.00013913,2]
[332162185,1720996242750,-500.0,0.00013913,2]
[332162187,1720996242759,-618.21,0.00013913,2]
[332162190,1720996242772,-500.0,0.00013913,2]
[332162192,1720996242781,-500.0,0.00013913,2]
[332162194,1720996242791,-500.0,0.00013913,2]
[332162196,1720996242801,-451.64,0.00013913,2]
[332162198,1720996242810,-500.0,0.00013913,2]
[332162200,1720996242821,-500.0,0.00013913,2]
[332162202,1720996242831,-500.0,0.00013913,2]
[332162203,1720996242841,-623.42,0.00013913,2]
[332162205,1720996242854,-500.0,0.00013913,2]
[332162207,1720996242864,-500.0,0.00013913,2]
[332162209,1720996242873,-500.0,0.00013913,2]
[332162211,1720996242883,-500.0,0.00013913,2]
[332162213,1720996242894,-500.0,0.00013913,2]
[332162215,1720996242904,-500.0,0.00013913,2]
[332162217,1720996242914,-500.0,0.00013913,2]
[332162219,1720996242925,-1310.93,0.00013913,2]
[332162221,1720996242936,-500.0,0.00013913,2]
[332162223,1720996242946,-500.0,0.00013913,2]
[332162225,1720996242955,-500.0,0.00013913,2]
[332162227,1720996242965,-580.27945598,0.00013913,2]
[332162229,1720996242975,-500.0,0.00013913,2]
[332162231,1720996242985,-500.0,0.00013913,2]
[332162233,1720996242995,-500.0,0.00013913,2]
[332162235,1720996243005,-500.0,0.00013913,2]
[332162237,1720996243015,-500.0,0.00013913,2]
[332162239,1720996243025,-500.0,0.00013913,2]
[332162241,1720996243035,-500.0,0.00013913,2]
[332162243,1720996243044,-500.0,0.00013913,2]
[332162245,1720996243054,-500.0,0.00013913,2]
[332162247,1720996243063,-500.0,0.00013913,2]
[332162249,1720996243074,-500.0,0.00013913,2]
[332162251,1720996243084,-500.0,0.00013913,2]
[332162254,1720996243094,-420.41701893,0.00013913,2]
[332162258,1720996243103,-500.0,0.00013913,2]
[332162261,1720996243113,-500.0,0.00013913,2]
[332162264,1720996243123,-500.0,0.00013913,2]
[332162265,1720996243133,-500.0,0.00013913,2]
[332162268,1720996243142,-500.0,0.00013913,2]
[332162270,1720996243152,-500.0,0.00013913,2]
[332162271,1720996243161,-500.0,0.00013913,2]
[332162273,1720996243171,-500.0,0.00013914,2]
[332162275,1720996243180,-500.0,0.00013914,2]
[332162277,1720996243189,-500.0,0.00013914,2]
[332162279,1720996243200,-500.0,0.00013914,2]
[332162281,1720996243209,-500.0,0.00013914,2]
[332162284,1720996243219,-500.0,0.00013914,2]
[332162286,1720996243229,-500.0,0.00013914,2]
[332162288,1720996243238,-500.0,0.00013914,2]
[332162289,1720996243248,-500.0,0.00013914,2]
[332162291,1720996243258,-500.0,0.00013914,2]
[332162293,1720996243268,-500.0,0.00013914,2]
[332162296,1720996243277,-500.0,0.00013914,2]
[332162297,1720996243286,-500.0,0.00013914,2]
[332162299,1720996243296,-500.0,0.00013914,2]
[332162301,1720996243306,-500.0,0.00013914,2]
[332162304,1720996243316,-500.0,0.00013914,2]
[332162305,1720996243325,-500.0,0.00013914,2]
[332162308,1720996243335,-500.0,0.00013914,2]
[332162310,1720996243344,-500.0,0.00013914,2]
[332162311,1720996243354,-500.0,0.00013914,2]
[332162313,1720996243363,-500.0,0.00013914,2]
[332162315,1720996243372,-274.13458352,0.00013914,2]
[332162317,1720996243381,-500.0,0.00013914,2]
[332162319,1720996243391,-500.0,0.00013914,2]
[332162321,1720996243401,-500.0,0.00013914,2]
[332162323,1720996243411,-500.0,0.00013914,2]
[332162325,1720996243420,-500.0,0.00013914,2]
[332162327,1720996243430,-500.0,0.00013914,2]
[332162330,1720996243440,-500.0,0.00013914,2]
[332162332,1720996243450,-500.0,0.00013914,2]
[332162334,1720996243460,-500.0,0.00013914,2]
[332162336,1720996243469,-500.0,0.00013914,2]
[332162338,1720996243479,-212.5743502,0.00013914,2]
[332162342,1720996243515,-621.44,0.00013,2]
[332162344,1720996243524,-287.4256498,0.00013914,2]
[332162346,1720996243533,-500.0,0.00013914,2]
[332162348,1720996243542,-500.0,0.00013914,2]
[332162350,1720996243553,-500.0,0.00013915,2]
[332162352,1720996243562,-20.18050893,0.00013915,2]
[332162366,1720996243786,-335.55999996,0.00013,2]
[332162368,1720996243798,-285.88000004,0.00013,2]
[332162370,1720996243807,-146.11999996,0.00013,2]
[332162373,1720996243819,-475.32000004,0.00013,2]
[332162374,1720996243829,-621.44,0.00013,2]
[332162376,1720996243838,-621.44,0.00013,2]
[332162378,1720996243851,-621.44,0.00013,2]
[332162380,1720996243860,-39.69999996,0.00013,2]
[332162382,1720996243871,-581.74000004,0.00013,2]
[332162384,1720996243881,-621.44,0.00013,2]
[332162386,1720996243892,-621.44,0.00013,2]
[332162388,1720996243901,-621.44,0.00013,2]
[332162390,1720996243911,-621.44,0.00013,2]
[332162392,1720996243922,-621.44,0.00013,2]
[332162394,1720996243932,-621.44,0.00013,2]
[332162396,1720996243943,-479.81949107,0.00013915,2]
[332162398,1720996243952,-500.0,0.00013915,2]
[332162400,1720996243962,-500.0,0.00013915,2]
[332162402,1720996243972,-500.0,0.00013915,2]
[332162404,1720996243981,-500.0,0.00013915,2]
[332162406,1720996243991,-194.79469984,0.00013915,2]
[332162408,1720996244003,-305.20530016,0.00013915,2]
[332162410,1720996244013,-500.0,0.00013915,2]
[332162413,1720996244023,-1045.1,0.00013917,2]
[332162415,1720996244033,-500.0,0.00013917,2]
[332162416,1720996244043,-150.0,0.00013917,2]
[332162418,1720996244052,-473.84,0.00013917,2]
[332162420,1720996244062,-500.0,0.00013917,2]
[332162423,1720996244074,-16.95189986,0.00013917,2]
[332162425,1720996244086,-310.0,0.00013917,2]
[332162428,1720996244101,-173.04810014,0.00013917,2]
[332162430,1720996244110,-245.86,0.00013917,2]
[332162432,1720996244120,-521.07,0.00013917,2]
[332162434,1720996244129,-500.0,0.00013917,2]
[332162436,1720996244139,-500.0,0.00013917,2]
[332162438,1720996244148,-355.63312616,0.00013917,2]
[332162475,1720996244502,-144.36687384,0.00013917,2]
[332162477,1720996244513,-727.87,0.00013917,2]
[332162479,1720996244522,-508.17,0.00013917,2]
[332162481,1720996244532,-694.14,0.00013917,2]
[332162483,1720996244542,-500.0,0.00013917,2]
[332162485,1720996244551,-500.0,0.00013917,2]
[332162487,1720996244561,-500.0,0.00013917,2]
[332162489,1720996244573,-500.0,0.00013917,2]
[332162491,1720996244583,-580.99,0.00013917,2]
[332162493,1720996244592,-500.0,0.00013917,2]
[332162495,1720996244601,-500.0,0.00013917,2]
[332162497,1720996244611,-500.0,0.00013917,2]
[332162499,1720996244621,-500.0,0.00013917,2]
[332162501,1720996244630,-500.0,0.00013917,2]
[332162503,1720996244640,-748.28,0.00013917,2]
[332162505,1720996244650,-500.0,0.00013917,2]
[332162507,1720996244660,-500.0,0.00013917,2]
[332162509,1720996244669,-772.34,0.00013917,2]
[332162511,1720996244679,-500.0,0.00013917,2]
[332162513,1720996244688,-500.0,0.00013917,2]
[332162515,1720996244698,-500.0,0.00013917,2]
[332162517,1720996244708,-500.0,0.00013917,2]
[332162519,1720996244717,-919.77,0.00013917,2]
[332162521,1720996244727,-500.0,0.00013917,2]
[332162523,1720996244737,-500.0,0.00013917,2]
[332162525,1720996244747,-500.0,0.00013917,2]
[332162527,1720996244756,-950.04,0.00013917,2]
[332162529,1720996244766,-500.0,0.00013917,2]
[332162531,1720996244776,-593.28,0.00013917,2]
[332162533,1720996244785,-566.4,0.00013917,2]
[332162535,1720996244796,-12617.0940593,0.00013948,3]
[332162537,1720996244806,-12617.0940593,0.00013958,3]
[332162539,1720996244817,-500.0,0.00013958,2]
[332162542,1720996244827,-500.0,0.00013958,2]
[332162544,1720996244837,-500.0,0.00013958,2]
[332162546,1720996244848,-500.0,0.00013958,2]
[332162548,1720996244861,-500.0,0.00013958,2]
[332162550,1720996244870,-2663.13,0.00013958,2]
[332162552,1720996244880,-505.22355343,0.00013958,2]
[332162553,1720996244890,-500.0,0.00013958,2]
[332162555,1720996244900,-500.0,0.00013958,2]
[332162557,1720996244910,-500.0,0.00013958,2]
[332162559,1720996244920,-500.0,0.00013958,2]
[332162561,1720996244931,-500.0,0.00013958,2]
[332162563,1720996244941,-500.0,0.00013958,2]
[332162565,1720996244951,-841.24,0.00013958,2]
[332162567,1720996244961,-500.0,0.00013958,2]
[332162569,1720996244970,-12617.0940593,0.00013959,3]
[332162571,1720996244980,-500.0,0.00013968,2]
[332162573,1720996244989,-500.0,0.00013968,2]
[332162575,1720996244999,-500.0,0.00013968,2]
[332162577,1720996245009,-500.0,0.00013968,2]
[332162579,1720996245019,-500.0,0.00013968,2]
[332162581,1720996245029,-500.0,0.00013968,2]
[332162583,1720996245039,-500.0,0.00013968,2]
[332162585,1720996245048,-500.0,0.00013968,2]
[332162587,1720996245059,-556.55,0.00013968,2]
[332162589,1720996245072,-476.54,0.00013968,2]
[332162591,1720996245082,-500.0,0.00013968,2]
[332162593,1720996245093,-500.0,0.00013968,2]
[332162595,1720996245106,-623.42,0.00013968,2]
[332162597,1720996245115,-500.0,0.00013968,2]
[332162599,1720996245125,-389.42,0.00013968,2]
[332162601,1720996245134,-500.0,0.00013968,2]
[332162603,1720996245144,-500.0,0.00013968,2]
[332162605,1720996245153,-500.0,0.00013968,2]
[332162607,1720996245163,-500.0,0.00013968,2]
[332162609,1720996245172,-500.0,0.00013968,2]
[332162611,1720996245183,-1310.93,0.00013968,2]
[332162613,1720996245192,-500.0,0.00013968,2]
[332162615,1720996245202,-500.0,0.00013968,2]
[332162617,1720996245212,-500.0,0.00013968,2]
[332162619,1720996245221,-500.0,0.00013968,2]
[332162621,1720996245231,-500.0,0.00013968,2]
[332162623,1720996245241,-500.0,0.00013968,2]
[332162625,1720996245250,-500.0,0.00013968,2]
[332162627,1720996245260,-500.0,0.00013968,2]
[332162629,1720996245269,-500.0,0.00013968,2]
[332162631,1720996245279,-500.0,0.00013968,2]
[332162633,1720996245289,-500.0,0.00013968,2]
[332162635,1720996245298,-500.0,0.00013968,2]
[332162637,1720996245308,-500.0,0.00013968,2]
[332162639,1720996245319,-500.0,0.00013968,2]
[332162641,1720996245329,-500.0,0.00013968,2]
[332162643,1720996245338,-500.0,0.00013968,2]
[332162661,1720996245503,-500.0,0.00013968,2]
[332162663,1720996245513,-500.0,0.00013968,2]
[332162665,1720996245523,-159.47496992,0.00013968,2]
[332162667,1720996245533,-500.0,0.00013968,2]
[332162669,1720996245542,-500.0,0.00013968,2]
[332162671,1720996245551,-500.0,0.00013969,2]
[332162673,1720996245561,-500.0,0.00013969,2]
[332162676,1720996245571,-500.0,0.00013969,2]
[332162677,1720996245580,-500.0,0.00013969,2]
[332162679,1720996245589,-500.0,0.00013969,2]
[332162681,1720996245598,-500.0,0.00013969,2]
[332162683,1720996245608,-500.0,0.00013969,2]
[332162685,1720996245618,-500.0,0.00013969,2]
[332162687,1720996245627,-500.0,0.00013969,2]
[332162689,1720996245637,-500.0,0.00013969,2]
[332162691,1720996245646,-500.0,0.00013969,2]
[332162693,1720996245656,-500.0,0.00013969,2]
[332162695,1720996245665,-500.0,0.00013969,2]
[332162697,1720996245675,-500.0,0.00013969,2]
[332162699,1720996245684,-500.0,0.00013969,2]
[332162701,1720996245694,-500.0,0.00013969,2]
[332162703,1720996245704,-500.0,0.00013969,2]
[332162705,1720996245714,-500.0,0.00013969,2]
[332162707,1720996245723,-500.0,0.00013969,2]
[332162709,1720996245733,-500.0,0.00013969,2]
[332162711,1720996245742,-500.0,0.00013969,2]
[332162713,1720996245752,-500.0,0.00013969,2]
[332162716,1720996245762,-500.0,0.00013969,2]
[332162718,1720996245771,-500.0,0.00013969,2]
[332162720,1720996245780,-500.0,0.00013969,2]
[332162722,1720996245790,-500.0,0.00013969,2]
[332162724,1720996245800,-500.0,0.00013969,2]
[332162726,1720996245809,-500.0,0.00013969,2]
[332162728,1720996245819,-500.0,0.00013969,2]
[332162730,1720996245830,-500.0,0.00013969,2]
[332162732,1720996245839,-500.0,0.00013969,2]
[332162734,1720996245850,-500.0,0.00013969,2]
[332162736,1720996245862,-500.0,0.00013969,2]
[332162738,1720996245871,-500.0,0.00013969,2]
[332162740,1720996245881,-500.0,0.00013969,2]
[332162742,1720996245890,-500.0,0.00013969,2]
[332162744,1720996245902,-500.0,0.00013969,2]
[332162746,1720996245912,-500.0,0.00013969,2]
[332162748,1720996245922,-500.0,0.00013969,2]
[332162750,1720996245933,-500.0,0.00013969,2]
[332162752,1720996245943,-500.0,0.00013969,2]
[332162755,1720996245953,-1045.1,0.00013972,2]
[332162757,1720996245962,-500.0,0.00013972,2]
[332162759,1720996245971,-150.0,0.00013972,2]
[332162761,1720996245981,-608.28424237,0.00013972,2]
[332162763,1720996245990,-200.35,0.00013972,2]
[332162765,1720996246000,-619.9526973,0.00013972,2]
[332162767,1720996246009,-500.0,0.00013972,2]
[332162769,1720996246019,-500.0,0.00013972,2]
[332162771,1720996246029,-727.87,0.00013972,2]
[332162773,1720996246038,-508.17,0.00013972,2]
[332162775,1720996246048,-694.14,0.00013972,2]
[332162777,1720996246057,-500.0,0.00013972,2]
[332162779,1720996246067,-500.0,0.00013972,2]
[332162781,1720996246077,-500.0,0.00013972,2]
[332162783,1720996246086,-580.99,0.00013972,2]
[332162785,1720996246095,-500.0,0.00013972,2]
[332162787,1720996246105,-500.0,0.00013972,2]
[332162789,1720996246115,-500.0,0.00013972,2]
[332162791,1720996246124,-500.0,0.00013972,2]
[332162793,1720996246133,-748.28,0.00013972,2]
[332162795,1720996246143,-772.34,0.00013972,2]
[332162797,1720996246153,-500.0,0.00013972,2]
[332162799,1720996246162,-500.0,0.00013972,2]
[332162801,1720996246172,-500.0,0.00013972,2]
[332162803,1720996246182,-919.77,0.00013972,2]
[332162805,1720996246191,-500.0,0.00013972,2]
[332162807,1720996246201,-629.50298373,0.00013972,2]
[332162809,1720996246210,-500.0,0.00013972,2]
[332162811,1720996246220,-950.04,0.00013972,2]
[332162813,1720996246229,-500.0,0.00013972,2]
[332162815,1720996246239,-593.28,0.00013972,2]
[332162817,1720996246248,-1000.0,0.00013973,5]
[332162819,1720996246258,-449.0,0.00013973,2]
[332162821,1720996246268,-50468.3762372,0.00013987,3]
[332162823,1720996246277,-163.77074957,0.00013989,2]
[332162825,1720996246287,-330.53652471,0.00013989,2]
[332162827,1720996246296,-209.00279412,0.00013989,2]
[332162829,1720996246306,-113553.846534,0.0001399,3]
[332162830,1720996246316,-350.0,0.0001399,4]
[332162832,1720996246326,-2250.09858172,0.0001399,2]
[332162835,1720996246336,-82404.55244321,0.00013997,2]
[332162837,1720996246346,-4789.81989112,0.00013997,2]
[332162839,1720996246355,-246.58692005,0.00013999,2]
[332162841,1720996246365,-298.07742368,0.00013999,2]
[332162842,1720996246374,-578.0,0.00013999,2]
[332162843,1720996246383,-340659.94629735,0.00014,2]
[332162844,1720996246393,-188693.53532962,0.00014,2]
[332162845,1720996246402,-500.0,0.00014,2]
[332162846,1720996246412,-39845.73261529,0.00014,2]
[332162847,1720996246436,-621.44,0.00013,2]
[332162848,1720996246445,-744.55585064,0.00014,2]
[332162849,1720996246456,-707.3898016,0.00014,2]
[332162850,1720996246467,-9854.86400014,0.00014,2]
[332162852,1720996246479,-2421.6,0.00014,2]
[332162868,1720996246633,-621.44,0.00013,2]
[332162871,1720996246643,-621.44,0.00013,2]
[332162873,1720996246652,-621.44,0.00013,2]
[332162875,1720996246662,-621.44,0.00013,2]
[332162876,1720996246671,-621.44,0.00013,2]
[332162878,1720996246680,-621.44,0.00013,2]
[332162880,1720996246689,-621.44,0.00013,2]
[332162882,1720996246698,-621.44,0.00013,2]
[332162885,1720996246709,-621.44,0.00013,2]
[332162887,1720996246719,-621.44,0.00013,2]
[332162889,1720996246728,-621.44,0.00013,2]
[332162891,1720996246737,-621.44,0.00013,2]
[332162892,1720996246746,-341.07948322,0.00013698,2]
[332162894,1720996246756,-89827.49495769,0.00014,2]
[332162896,1720996246765,-1066641.88285737,0.00014,2]
[332162899,1720996246777,-922.42628103,0.00014,2]
[332162901,1720996246788,-2579.27950171,0.00014,2]